bitfinex/quotes_ETHUSD_20251023
["timestamp","ask_amount","ask_price","bid_price","bid_amount"]
[1761226444932,0.297,3853.7,3853.0,2.59531827]
[1761226445129,0.201,3853.8,3852.6,0.22102]
[1761226445427,0.299,3854.9,3852.9,2.59544758]
[1761226445628,0.299,3854.9,3853.4,2.59509835]
[1761226445629,2.69322073,3854.8,3853.4,2.59509835]
[1761226445827,0.50688,3854.7,3853.1,1.5552]
[1761226446052,0.099,3854.7,3853.2,3.94707592]
[1761226446263,2.69324164,3854.7,3853.4,2.59511081]
[1761226446462,0.099,3854.7,3853.5,0.02595043]
[1761226446766,0.001,3854.9,3854.4,2.59441847]
[1761226446964,0.001,3854.9,3854.5,2.59436095]
[1761226447168,0.3,3854.4,3854.3,4.14970483]
[1761226447331,0.3,3854.4,3854.3,8.05440483]
[1761226447732,0.3,3854.4,3854.3,7.60970483]
[1761226447959,0.3,3854.4,3854.3,9.07483495]
[1761226448171,0.001,3854.9,3854.8,2.5941683]
[1761226448369,0.001,3854.9,3854.8,7.6123683]
[1761226449134,0.001,3854.9,3854.8,8.0570683]
[1761226449338,0.001,3854.9,3854.8,7.6123683]
[1761226449569,0.001,3854.9,3854.8,4.1493683]
[1761226449885,0.001,3854.9,3854.8,5.2908608]
[1761226450867,1e-08,3855.7,3855.6,4.14883004]
[1761226451073,1e-08,3855.7,3855.6,7.60983004]
[1761226451274,1e-08,3855.7,3855.6,8.05453004]
[1761226451481,1e-08,3855.7,3855.6,9.11935499]
[1761226452342,1e-08,3855.7,3855.6,8.67465499]
[1761226452544,1e-08,3855.7,3855.6,9.11935499]
[1761226452950,1e-08,3855.7,3855.6,4.14883004]
[1761226453164,1e-08,3855.7,3855.6,7.60783004]
[1761226453470,1e-08,3855.7,3855.6,8.05253004]
[1761226454135,1e-08,3855.7,3855.6,7.60783004]
[1761226454343,1e-08,3855.7,3855.6,7.73743004]
[1761226454773,1e-08,3855.7,3855.6,8.18213004]
[1761226455070,1e-08,3855.7,3854.1,0.98013495]
[1761226455071,0.10320001,3855.7,3854.1,0.98013495]
[1761226455236,0.10320001,3855.7,3854.7,0.2243]
[1761226455436,1e-08,3855.7,3855.6,2.59363004]
[1761226455668,1e-08,3855.7,3854.7,1.583]
[1761226455669,1e-08,3855.7,3854.7,0.2243]
[1761226455972,0.1032,3855.6,3854.5,3.462]
[1761226456182,0.1032,3855.6,3854.6,4.09007635]
[1761226456534,1e-08,3855.7,3855.4,2.59375238]
[1761226456769,0.1032,3855.8,3854.6,4.09007635]
[1761226456972,0.2916,3855.7,3855.1,2.59392236]
[1761226457199,2.59369731,3855.5,3854.6,2.59429194]
[1761226457503,0.1935,3855.6,3854.6,0.8652794]
[1761226457787,0.1935,3855.6,3854.7,1.5552]
[1761226458029,0.1935,3855.6,3855.4,2.59373555]
[1761226458143,0.1935,3855.6,3854.7,1.5552]
[1761226458572,0.099,3855.5,3854.5,1.5552]
[1761226458771,0.099,3855.5,3854.9,2.5940341]
[1761226458973,0.1935,3855.6,3854.6,1.14118152]
[1761226459175,0.099,3856.0,3855.6,2.59358825]
[1761226459562,0.099,3856.0,3855.3,2.59377619]
[1761226459737,0.099,3856.0,3855.6,2.59358479]
[1761226459939,0.099,3856.0,3855.7,2.59355933]
[1761226460246,0.001,3856.1,3855.1,0.63194303]
[1761226460438,0.001,3856.1,3856.0,2.59336099]
[1761226460675,2.69419374,3856.1,3856.0,0.0249336]
[1761226460877,2.59359264,3855.7,3853.6,0.4467]
[1761226461178,1.5552,3856.0,3854.6,2.59425416]
[1761226461179,0.0989,3856.0,3854.6,2.59425416]
[1761226461339,0.0989,3855.9,3854.8,2.59411285]
[1761226461540,0.0989,3855.9,3854.1,0.53543495]
[1761226461786,2.59360897,3855.7,3854.7,2.59417998]
[1761226461962,0.50688,3855.8,3854.2,3.6192]
[1761226462163,0.0999,3855.7,3854.2,3.6192]
[1761226462566,0.1001,3856.1,3854.3,4.62033354]
[1761226462748,0.0002,3856.1,3856.0,2.59336099]
[1761226462943,0.0002,3856.1,3854.4,1.16667685]
[1761226463282,0.0002,3856.1,3853.6,0.002]
[1761226463283,0.0002,3856.1,3855.8,2.59344157]
[1761226463451,0.0002,3856.1,3855.7,2.99]
[1761226463639,0.1001,3856.1,3855.7,2.99]
[1761226464086,0.1001,3856.1,3855.9,2.59338537]
[1761226464246,0.0002,3856.1,3856.0,2.61929459]
[1761226464444,0.0002,3856.1,3856.0,2.59336099]
[1761226464860,0.0002,3856.1,3856.0,6.07436099]
[1761226465145,0.0002,3856.1,3854.9,2.59408627]
[1761226465146,0.2297,3856.1,3854.4,0.2243]
[1761226465352,0.2297,3856.1,3853.6,1.947]
[1761226465353,2.59377362,3855.4,3854.0,0.2243]
[1761226465568,0.81614952,3855.3,3853.7,0.2243]
[1761226465770,2.5936193,3855.7,3854.2,1.66094572]
[1761226465969,2.59381709,3855.4,3854.4,2.59443255]
[1761226466169,3.44182749,3855.6,3854.6,2.59429682]
[1761226466170,0.55675084,3855.3,3854.6,2.59429682]
[1761226466369,0.55675084,3855.2,3854.6,6.07529682]
[1761226466572,3.15051793,3855.4,3854.1,0.53543495]
[1761226466787,0.55675084,3855.3,3854.5,2.59435778]
[1761226467102,0.55675084,3855.3,3854.2,6.07655521]
[1761226467103,0.65665084,3855.3,3854.3,1.5552]
[1761226467389,0.0002,3856.1,3855.5,2.59365552]
[1761226467576,0.0002,3856.1,3854.4,0.4707]
[1761226467896,0.55710607,3856.1,3855.6,2.59357563]
[1761226468090,0.0992,3856.1,3855.9,2.59340813]
[1761226468289,0.0992,3856.1,3855.7,3.483]
[1761226468290,0.099,3856.0,3855.7,3.483]
[1761226468452,0.50688,3855.9,3854.1,0.53543495]
[1761226468650,0.55690607,3855.8,3854.2,3.97814572]
[1761226468855,0.55690607,3855.7,3854.3,0.45135807]
[1761226469055,0.0002,3856.1,3854.1,0.53543495]
[1761226469056,0.50688,3855.5,3854.1,0.53543495]
[1761226469312,0.50688,3855.3,3854.1,0.53543495]
[1761226469484,0.2,3854.2,3854.1,3.39143495]
[1761226469686,0.2,3854.2,3854.1,0.53543495]
[1761226469886,0.3008,3854.2,3853.8,3.489]
[1761226470391,0.199,3854.5,3854.3,2.59444492]
[1761226470602,0.1008,3854.9,3853.8,3.8381]
[1761226470603,0.65786071,3854.9,3854.5,2.5943057]
[1761226470787,0.199,3855.0,3854.0,0.02594706]
[1761226470963,0.199,3855.0,3854.6,2.59425276]
[1761226471158,0.3008,3855.0,3854.6,2.59425276]
[1761226471354,0.199,3855.0,3854.7,2.62013483]
[1761226471555,0.198,3855.2,3855.1,2.59396643]
[1761226471858,0.198,3855.2,3853.3,0.4722]
[1761226472088,0.65971392,3855.1,3854.5,2.59431775]
[1761226472290,0.65971392,3855.1,3854.5,3.489]
[1761226472495,0.1028,3855.0,3854.5,3.489]
[1761226472904,2.69685206,3855.0,3854.2,2.59456977]
[1761226473137,0.1028,3855.0,3854.4,2.59443362]
[1761226473259,0.1028,3854.9,3854.1,0.002]
[1761226473455,0.1028,3854.9,3854.6,2.59428897]
[1761226473678,0.1028,3854.9,3854.1,0.002]
[1761226473881,0.1028,3854.9,3854.3,2.59450483]
[1761226474191,2.59436038,3854.6,3854.1,0.002]
[1761226474395,0.65975549,3854.5,3854.1,0.002]
[1761226474567,0.1028,3854.5,3854.4,2.59443752]
[1761226474769,0.55692745,3855.0,3854.4,2.59443752]
[1761226474960,0.198,3855.2,3854.3,0.02594504]
[1761226474961,0.55692745,3855.1,3854.5,2.5943555]
[1761226475170,3.15097682,3855.0,3854.3,2.59449355]
[1761226475394,0.1296,3854.4,3854.1,0.002]
[1761226475589,0.1296,3854.2,3854.1,0.002]
[1761226476209,0.1296,3854.2,3854.1,2.59663947]
[1761226476414,0.55692745,3854.8,3854.7,2.5942356]
[1761226476717,0.1296,3855.0,3854.9,2.59410101]
[1761226477080,0.1296,3855.0,3854.9,2.62004202]
[1761226477284,0.198,3855.2,3855.1,2.59396643]
[1761226477585,0.0002,3856.1,3856.0,2.59336099]
[1761226477900,0.0002,3856.1,3856.0,7.66149459]
[1761226478060,0.0002,3856.1,3856.0,4.14856099]
[1761226478264,0.0002,3856.1,3856.0,8.3167623]
[1761226478820,0.0002,3856.1,3855.9,2.5934272]
[1761226479120,0.0002,3856.1,3856.0,2.59336099]
[1761226479294,0.0992,3856.1,3855.2,3.495]
[1761226479668,0.0002,3856.1,3855.2,6.08884184]
[1761226479861,0.0002,3856.1,3854.6,2.0254]
[1761226479862,0.0002,3856.1,3856.0,2.59336099]
[1761226480161,0.0002,3856.1,3856.0,3.501]
[1761226480362,0.0002,3856.1,3855.1,1.5552]
[1761226480564,0.0002,3856.1,3855.2,3.91591716]
[1761226480779,0.0992,3856.1,3855.2,0.41491716]
[1761226480984,0.0992,3856.1,3855.4,2.59370956]
[1761226481316,0.1869,3856.0,3855.5,6.0926938]
[1761226481487,0.2868,3856.0,3855.5,3.499]
[1761226481818,0.0999,3855.9,3855.5,3.499]
[1761226482180,0.0999,3855.9,3855.5,6.09269283]
[1761226482377,0.0999,3855.9,3855.7,2.59353814]
[1761226482605,0.0999,3855.9,3855.5,3.499]
[1761226482807,0.0999,3855.9,3855.5,6.09268888]
[1761226483204,0.0999,3855.9,3855.5,6.09268619]
[1761226483383,0.0999,3855.9,3855.5,3.499]
[1761226483584,0.0999,3855.9,3854.5,0.2184]
[1761226483780,0.0999,3855.9,3854.7,2.5942356]
[1761226483984,0.1869,3856.0,3854.8,0.63375793]
[1761226484204,0.1869,3856.0,3855.7,2.59350995]
[1761226484431,0.0999,3855.9,3855.8,3.498]
[1761226484915,0.1869,3856.0,3855.8,3.498]
[1761226485217,0.0002,3856.1,3856.0,2.59336099]
[1761226485517,0.1873,3856.5,3856.4,2.593092]
[1761226485716,0.1873,3856.5,3856.4,6.091092]
[1761226486017,0.2872,3856.5,3855.0,0.2184]
[1761226486318,0.0999,3856.4,3855.5,2.59367263]
[1761226486516,2.59320937,3856.3,3855.6,3.497]
[1761226486716,2.59320937,3856.3,3855.7,3.497]
[1761226486924,0.0999,3856.2,3855.8,3.497]
[1761226487215,2.69316153,3856.2,3855.2,2.59389792]
[1761226487409,0.1807,3855.3,3855.2,2.59389792]
[1761226487606,0.1807,3855.3,3855.2,6.08989792]
[1761226487809,0.1007,3856.1,3855.7,2.59351333]
[1761226487994,0.1296,3855.9,3855.8,2.59349551]
[1761226488224,0.1296,3855.9,3855.7,2.59350712]
[1761226488421,0.1296,3855.9,3855.3,0.1296]
[1761226488635,0.1296,3855.9,3855.8,2.59349551]
[1761226489044,0.1296,3855.9,3855.6,3.494]
[1761226489243,0.1296,3855.9,3855.7,2.59350427]
[1761226489244,0.1015,3855.8,3855.7,2.59350427]
[1761226489749,0.1015,3855.8,3855.6,6.08761498]
[1761226489951,0.1015,3855.8,3855.2,0.1296]
[1761226490153,0.1015,3855.8,3855.5,3.492]
[1761226490319,0.2795,3856.2,3855.5,1.318]
[1761226490514,0.1873,3856.5,3855.5,1.318]
[1761226490723,0.1815,3855.6,3855.5,3.91169731]
[1761226491018,0.1815,3855.9,3855.6,2.59363004]
[1761226491242,0.1815,3855.9,3855.5,1.318]
[1761226491243,0.1825,3855.9,3855.5,1.318]
[1761226491429,0.1825,3855.9,3854.7,0.6886]
[1761226491750,0.0998,3855.8,3854.9,1.5552]
[1761226492173,0.0998,3855.8,3855.2,2.59387898]
[1761226492461,0.0998,3855.8,3855.0,3.492]
[1761226492620,0.1825,3855.9,3855.8,2.59349551]
[1761226492821,0.001,3855.9,3855.8,2.59349551]
[1761226493675,0.001,3855.9,3855.8,4.61889551]
[1761226493833,0.001,3855.9,3855.8,6.19871855]
[1761226494434,0.001,3856.7,3855.8,6.19871855]
[1761226494435,1e-08,3856.7,3856.6,3.09983752]
[1761226494628,0.1886,3858.7,3856.8,0.2184]
[1761226494819,0.0999,3858.6,3857.0,1.5552]
[1761226495023,0.0999,3858.6,3857.2,1.5552]
[1761226495232,0.1886,3858.7,3858.5,2.59162301]
[1761226495432,0.1807,3859.2,3858.4,3.491]
[1761226495642,0.1807,3859.2,3859.1,2.59127775]
[1761226495862,0.1008,3859.6,3859.1,3.491]
[1761226496049,0.1016,3860.2,3858.5,0.6886]
[1761226496246,0.1016,3860.4,3858.7,1.5552]
[1761226496446,0.1016,3860.4,3859.0,2.5913449]
[1761226496760,0.1016,3860.4,3859.9,2.59074069]
[1761226496987,0.1799,3861.0,3859.9,3.49]
[1761226497140,0.1799,3861.0,3860.0,1.58110673]
[1761226497470,4.0,3863.0,3860.0,1.58110673]
[1761226497471,0.13523556,3862.4,3861.8,2.58946605]
[1761226497657,0.13523556,3862.4,3861.8,8.10686605]
[1761226497859,0.1999,3864.2,3861.8,8.14354605]
[1761226497860,0.1879,3862.7,3861.8,8.14354605]
[1761226498071,0.0999,3862.5,3861.8,3.507]
[1761226498471,0.1879,3862.7,3861.4,3.507]
[1761226498769,0.1879,3862.7,3861.1,0.4702]
[1761226498770,0.1879,3862.7,3861.8,2.58946605]
[1761226499066,0.099,3861.8,3860.5,0.2302]
[1761226499378,13.78923883,3862.7,3860.6,3.001]
[1761226499681,0.18,3861.0,3860.0,2.59061627]
[1761226499838,0.18,3861.0,3860.7,3.193]
[1761226500039,4.93188259,3861.0,3859.3,2.5911318]
[1761226500273,2.58717688,3861.0,3859.4,0.2302]
[1761226500457,18.53322142,3861.0,3858.2,0.2302]
[1761226500888,4.93188259,3861.0,3859.0,0.128]
[1761226501055,4.42500259,3861.0,3859.0,0.128]
[1761226501239,4.93188259,3861.0,3859.0,0.128]
[1761226501641,0.18,3861.0,3860.0,0.2302]
[1761226501843,0.18,3861.0,3859.1,0.02591277]
[1761226501844,0.2798,3861.0,3857.7,2.59217135]
[1761226502141,0.2798,3861.0,3858.8,1.5552]
[1761226502142,6.37068447,3861.0,3858.8,1.5552]
[1761226502369,0.50688,3860.8,3858.9,2.59136265]
[1761226502570,0.50688,3860.6,3857.8,0.2184]
[1761226502739,0.1989,3858.9,3857.3,0.2302]
[1761226503288,0.60768,3858.8,3856.9,2.59275051]
[1761226503486,0.60768,3858.8,3856.5,0.2302]
[1761226503487,0.1008,3858.8,3857.0,0.25927505]
[1761226503788,0.1008,3858.8,3857.0,0.46642688]
[1761226503789,0.1008,3858.7,3857.0,0.46642688]
[1761226503993,0.1989,3858.9,3857.2,1.5552]
[1761226504154,0.1989,3858.9,3857.0,3.03316532]
[1761226504510,13.60133883,3860.5,3857.0,3.03316532]
[1761226504511,2.5895713,3861.7,3857.3,0.02592486]
[1761226504713,0.13526285,3860.9,3859.0,1.5552]
[1761226504856,0.23426285,3860.9,3859.2,1.5552]
[1761226505191,3.533,3861.5,3860.2,2.59052447]
[1761226505192,2.58993678,3861.1,3860.2,2.59052447]
[1761226505354,2.58993678,3861.1,3860.0,2.59061273]
[1761226505561,2.5900062,3861.0,3859.7,3.03133125]
[1761226505756,0.69716825,3861.1,3859.7,0.4405]
[1761226505956,0.69716825,3861.1,3859.4,3.532]
[1761226505957,0.0998,3861.0,3859.4,3.532]
[1761226506184,0.0998,3861.0,3858.0,0.4405]
[1761226506185,0.50688,3860.6,3858.0,0.4405]
[1761226506361,2.5905464,3860.2,3858.2,2.59188222]
[1761226506567,0.50688,3860.3,3858.9,2.59139987]
[1761226506890,1.5552,3859.8,3859.0,2.59133035]
[1761226507200,2.59108057,3859.4,3858.5,3.533]
[1761226507353,2.59150037,3858.8,3857.7,2.59221816]
[1761226507554,0.70558,3860.1,3857.0,0.4405]
[1761226507555,0.50688,3859.3,3857.0,0.4405]
[1761226507772,0.50688,3859.3,3857.6,2.59227487]
[1761226507990,0.50688,3859.0,3857.6,0.25922749]
[1761226508156,2.69321468,3858.9,3857.6,2.59222703]
[1761226508365,1.5552,3858.8,3857.5,2.59235136]
[1761226508567,1.5552,3858.8,3856.5,2.59302433]
[1761226508568,0.50688,3858.7,3856.5,0.4405]
[1761226508772,2.59208175,3858.0,3856.7,2.59289029]
[1761226508967,2.59235741,3857.5,3856.8,0.65663903]
[1761226509299,0.50688,3858.2,3856.1,0.2302]
[1761226509460,2.06208,3857.8,3855.8,0.2302]
[1761226509658,2.59274762,3857.0,3855.9,2.59339217]
[1761226509859,1.5552,3856.6,3855.8,0.2302]
[1761226510067,1.5552,3856.6,3855.6,0.2302]
[1761226510259,1.5552,3856.7,3855.6,3.15026309]
[1761226510480,1.6542,3857.6,3855.7,0.46643562]
[1761226510663,1.6542,3857.6,3856.1,0.1296]
[1761226510664,0.1296,3856.7,3856.1,0.1296]
[1761226511190,0.099,3857.3,3855.6,0.2302]
[1761226511365,1.5552,3857.6,3855.7,0.4405]
[1761226511567,1.5552,3857.6,3855.9,2.59342825]
[1761226511771,1.5552,3857.6,3855.9,1.5552]
[1761226511979,0.50688,3858.3,3856.3,1.5552]
[1761226512298,0.81861445,3859.2,3857.5,0.2302]
[1761226512299,2.59124922,3859.2,3857.5,0.2302]
[1761226512510,2.59151193,3858.8,3857.8,2.59209352]
[1761226512797,2.59121864,3859.2,3858.2,2.59185233]
[1761226513092,0.769,3859.5,3857.6,0.4405]
[1761226513301,0.769,3859.5,3857.7,0.32630394]
[1761226513302,0.099,3859.4,3857.7,0.32630394]
[1761226513595,0.099,3859.4,3857.1,0.2302]
[1761226513778,0.099,3859.4,3857.1,2.82280644]
[1761226513779,0.50688,3859.3,3857.1,2.82280644]
[1761226513957,2.59158931,3858.7,3857.8,2.59213513]
[1761226514160,1.5552,3858.8,3857.9,2.59201735]
[1761226514361,2.69015009,3859.3,3858.3,2.59179824]
[1761226514578,4.81622312,3859.5,3857.4,0.02592419]
[1761226514579,4.14664003,3858.9,3857.4,0.4405]
[1761226514901,2.59168207,3858.5,3857.2,2.59255418]
[1761226515075,0.50688,3859.0,3857.3,0.28227542]
[1761226515276,0.50688,3858.8,3857.3,2.59247463]
[1761226515599,2.59201428,3858.1,3856.8,0.2302]
[1761226515893,1.5552,3858.4,3856.8,0.2302]
[1761226516095,3.538,3858.5,3856.9,0.4405]
[1761226516297,2.59176076,3858.4,3857.2,2.59255266]
[1761226516486,1.5552,3858.4,3857.8,2.59209496]
[1761226516684,1.5552,3858.4,3857.3,0.25925527]
[1761226516886,0.79598,3858.3,3857.2,2.59254956]
[1761226517088,0.79598,3858.3,3857.3,2.59247869]
[1761226517402,2.59200323,3858.1,3856.5,0.4405]
[1761226517576,2.59195354,3858.1,3856.5,0.4405]
[1761226517778,2.59215102,3857.8,3857.1,2.59259496]
[1761226518074,0.099,3858.1,3856.5,0.4405]
[1761226518275,0.50688,3858.0,3856.5,0.4405]
[1761226518477,0.1901,3858.3,3856.5,0.4405]
[1761226518804,2.59195657,3858.1,3857.3,2.59246766]
[1761226519170,2.59210601,3857.9,3856.5,0.4405]
[1761226519370,1.04511,3858.2,3856.6,0.22259]
[1761226519581,1.04511,3858.2,3856.7,0.4405]
[1761226519871,2.6909494,3858.1,3856.6,0.22259]
[1761226520194,2.6909494,3858.1,3855.7,0.4405]
[1761226520195,1.5552,3857.0,3855.7,0.4405]
[1761226520388,2.59275584,3856.9,3856.0,2.59330329]
[1761226520594,1.5552,3857.0,3856.0,2.59330329]
[1761226520770,0.099,3858.2,3856.1,0.98511281]
[1761226521101,0.1296,3856.7,3856.4,2.59308497]
[1761226521264,0.1296,3856.7,3856.1,0.64827988]
[1761226521463,0.1296,3856.7,3856.6,2.59295752]
[1761226521698,0.1296,3856.7,3856.5,2.59302107]
[1761226521901,1.5552,3857.9,3856.6,2.59295752]
[1761226522103,0.1296,3856.9,3856.8,2.59282306]
[1761226522305,4.14710081,3858.2,3856.8,0.56262134]
[1761226522616,1.5552,3858.0,3857.3,2.59246613]
[1761226522802,2.59202039,3858.0,3857.2,2.59255044]
[1761226522988,3.8251,3858.3,3857.1,2.59257236]
[1761226522989,1.5552,3857.8,3857.1,2.59257236]
[1761226523186,0.099,3857.9,3856.3,0.1296]
[1761226523187,1.6542,3857.9,3856.3,0.1296]
[1761226523375,0.60588,3857.9,3857.1,2.59256312]
[1761226523575,4.14726863,3858.0,3857.2,2.59250139]
[1761226523909,0.1296,3857.3,3857.0,2.59267697]
[1761226524113,0.50688,3857.9,3857.3,2.59247592]
[1761226524316,1.6542,3858.0,3857.4,2.59240059]
[1761226524607,3.09883563,3858.1,3857.4,2.59241385]
[1761226524824,0.1296,3857.5,3857.4,2.59241976]
[1761226524985,0.1296,3857.5,3857.2,2.59253423]
[1761226525310,0.1296,3857.1,3856.5,0.1296]
[1761226525508,2.69130975,3857.6,3856.8,2.59281755]
[1761226525675,0.50688,3858.1,3856.0,3.532]
[1761226525676,3.09883528,3858.1,3856.4,2.722692]
[1761226525876,0.1296,3856.9,3856.5,0.2722692]
[1761226526075,0.1296,3856.9,3856.8,2.59282306]
[1761226526608,0.1901,3858.3,3856.8,4.02112823]
[1761226526815,0.1296,3857.9,3857.4,0.1296]
[1761226526997,0.1296,3857.7,3856.9,0.6999]
[1761226527184,2.59199284,3858.1,3856.9,0.2347]
[1761226527384,0.1296,3857.1,3857.0,2.59268861]
[1761226527707,0.1296,3857.1,3856.0,3.6586]
[1761226527908,0.1296,3857.1,3855.8,0.4652]
[1761226527909,0.1296,3856.6,3856.4,2.59306696]
[1761226528118,0.1296,3856.5,3856.4,2.593092]
[1761226528514,0.1296,3856.5,3854.6,2.5942993]
[1761226528680,0.1007,3856.5,3856.4,0.002]
[1761226529014,8.62369457,3856.5,3856.4,0.002]
[1761226529311,8.75329457,3856.5,3856.4,0.002]
[1761226529487,0.50688,3856.3,3854.9,0.002]
[1761226529692,0.33788981,3856.5,3854.9,0.002]
[1761226529894,1.5552,3857.5,3854.9,0.002]
[1761226529895,0.13533099,3857.6,3856.5,2.59302476]
[1761226530097,0.1296,3857.2,3856.6,0.28220248]
[1761226530294,0.0998,3857.9,3857.0,2.59268269]
[1761226530497,0.1296,3856.9,3856.8,2.59282306]
[1761226530687,0.1296,3856.9,3854.9,1.5572]
[1761226531011,0.941,3858.0,3854.9,1.5572]
[1761226531012,0.1296,3856.5,3856.0,0.3586]
[1761226531212,3.63363109,3858.0,3857.1,2.59256172]
[1761226531413,0.1296,3857.2,3857.1,2.59256172]
[1761226531613,0.1296,3857.2,3856.3,0.1296]
[1761226531818,3.537,3857.9,3856.9,2.59274203]
[1761226531819,2.59223719,3857.7,3856.9,2.59274203]
[1761226532003,1.5552,3857.8,3857.1,2.59261101]
[1761226532204,0.1296,3857.2,3857.0,2.59267193]
[1761226532411,1.5552,3857.8,3857.1,2.59260596]
[1761226532612,0.1296,3857.2,3856.3,0.4372]
[1761226532820,0.1296,3856.7,3856.6,2.59295752]
[1761226533889,0.1296,3856.7,3856.6,3.03015752]
[1761226534090,3.537,3857.9,3857.5,2.59233792]
[1761226534290,3.5362,3857.9,3857.3,2.592475]
[1761226534539,3.5362,3857.9,3856.9,0.229]
[1761226535032,3.6368,3857.9,3857.3,2.59248505]
[1761226535192,3.6368,3857.9,3857.2,2.5925282]
[1761226535397,3.6368,3857.9,3856.9,2.5927037]
[1761226535720,3.6368,3857.9,3857.2,2.5924926]
[1761226535920,3.6368,3857.9,3857.3,2.59247111]
[1761226536235,6.22888633,3857.9,3857.2,2.59254697]
[1761226536409,2.6928038,3857.8,3856.6,0.6877234]
[1761226536735,0.1006,3857.8,3856.6,0.6877234]
[1761226537138,2.69278044,3857.8,3857.1,2.59257327]
[1761226537350,2.69287241,3857.7,3856.8,2.5927853]
[1761226537563,0.1006,3857.7,3856.6,0.6877234]
[1761226537708,0.1006,3857.7,3855.8,4.14864334]
[1761226537709,1.5552,3857.5,3856.0,0.67973628]
[1761226538063,0.50688,3857.6,3856.1,0.4372]
[1761226538371,0.001,3858.0,3856.3,2.59315924]
[1761226538504,0.001,3858.0,3856.4,5.5194]
[1761226538705,0.001,3858.0,3857.8,2.59213468]
[1761226538910,0.001,3858.0,3856.5,1.24845592]
[1761226539135,0.001,3858.0,3856.7,2.59289029]
[1761226539438,0.001,3858.0,3857.7,2.59218549]
[1761226539639,0.001,3858.0,3857.6,2.59227993]
[1761226539806,0.001,3858.0,3857.9,2.59208377]
[1761226540007,0.001,3858.0,3857.9,7.68128377]
[1761226540246,0.001,3858.0,3857.9,9.14842126]
[1761226540403,3.07725415,3860.1,3857.9,9.14842126]
[1761226540404,0.4866,3860.1,3857.9,9.14842126]
[1761226540603,0.4866,3860.1,3858.4,1.5552]
[1761226540604,0.1987,3860.1,3858.4,1.5552]
[1761226540909,0.2869,3860.7,3858.7,1.5552]
[1761226541033,0.2869,3860.7,3860.0,2.59062554]
[1761226541244,0.2869,3860.7,3859.8,2.59079991]
[1761226541245,0.001,3860.8,3860.3,2.59047224]
[1761226541849,0.001,3860.8,3860.3,3.02767224]
[1761226542216,0.001,3860.8,3860.3,6.55967224]
[1761226543115,0.001,3860.8,3860.3,8.11487224]
[1761226543428,0.001,3860.8,3860.3,9.69229634]
[1761226543922,0.001,3860.8,3860.3,4.09821634]
[1761226544112,0.001,3860.8,3860.3,7.75781634]
[1761226544514,0.001,3860.8,3860.3,2.72007224]
[1761226544715,0.001,3860.8,3860.3,2.59047224]
[1761226545045,0.90853257,3861.9,3860.4,0.4372]
[1761226545221,1.00943257,3861.9,3860.4,0.4372]
[1761226545412,1.00943257,3861.9,3859.8,3.537]
[1761226545413,0.50688,3861.7,3859.8,3.537]
[1761226545617,0.50688,3861.5,3859.9,1.5552]
[1761226545844,2.58993579,3861.1,3859.8,1.5552]
[1761226546044,2.58993579,3861.1,3859.7,3.9742]
[1761226546045,0.50688,3861.2,3859.0,0.4372]
[1761226546231,0.57005126,3861.6,3857.3,2.59243411]
[1761226546232,0.60778,3861.5,3859.2,6.56940717]
[1761226546431,0.60778,3861.5,3859.3,2.21214072]
[1761226546746,2.58991154,3861.2,3859.3,2.64934072]
[1761226547048,0.001,3860.4,3860.3,2.59046747]
[1761226547415,0.001,3860.4,3859.5,2.59095243]
[1761226547416,0.001,3860.4,3860.1,2.59060646]
[1761226547751,0.001,3860.4,3859.4,0.4372]
[1761226548075,0.001,3860.4,3860.3,4.14567224]
[1761226548212,0.001,3860.8,3860.7,4.14540384]
[1761226548425,0.001,3860.8,3860.7,5.08948384]
[1761226548964,0.001,3860.8,3860.7,2.59020384]
[1761226549432,0.001,3860.8,3860.7,3.02740384]
[1761226549632,0.001,3860.8,3860.7,3.94527371]
[1761226549831,0.001,3860.8,3860.4,3.561]
[1761226550163,0.001,3860.8,3860.7,2.59020384]
[1761226550327,0.001,3860.8,3860.7,2.61610587]
[1761226550528,0.001,3860.8,3860.7,3.53428384]
[1761226550730,0.001,3860.8,3860.7,5.08948384]
[1761226550961,0.001,3860.8,3860.7,6.36908603]
[1761226552755,0.001,3860.8,3860.7,9.92908603]
[1761226554656,0.099,3863.8,3863.2,2.58847323]
[1761226554965,0.1296,3863.3,3863.0,3.555]
[1761226555197,0.1296,3863.3,3863.2,2.58852764]
[1761226555349,0.16,3863.9,3863.5,2.58832664]
[1761226555539,0.16,3863.9,3863.5,6.14832664]
[1761226555737,0.16,3863.9,3863.5,6.58552664]
[1761226556495,0.3,3865.5,3864.9,2.58738906]
[1761226556774,0.3,3865.5,3864.9,6.15038906]
[1761226556940,0.3,3865.5,3864.9,7.10507676]
[1761226557271,0.3,3865.5,3864.9,9.16715676]
[1761226557645,1e-08,3865.0,3864.9,9.16715676]
[1761226557842,1e-08,3865.0,3864.9,7.62595676]
[1761226558077,1e-08,3865.0,3864.9,9.18115676]
[1761226558284,0.1756,3867.5,3866.2,2.5864904]
[1761226558455,0.1911,3867.8,3866.3,3.576]
[1761226558643,0.1911,3867.8,3865.5,0.59272]
[1761226558644,0.0982,3867.7,3865.5,0.59272]
[1761226558843,0.0982,3867.7,3865.6,0.71]
[1761226559052,2.58606115,3866.9,3865.6,0.71]
[1761226559245,0.1911,3867.8,3865.4,0.229]
[1761226559459,2.58607607,3866.9,3865.4,2.808]
[1761226559781,0.1748,3866.8,3865.4,2.808]
[1761226560282,0.196,3865.5,3864.8,3.587]
[1761226560682,0.196,3865.9,3864.4,0.4276]
[1761226560883,2.5856183,3867.6,3864.4,0.4276]
[1761226560884,0.099,3866.4,3864.6,2.58758991]
[1761226561087,0.195,3866.1,3864.5,3.587]
[1761226561381,0.195,3866.1,3865.3,2.58708586]
[1761226561584,0.195,3866.1,3865.6,2.58689586]